Cogmind - Beta 16 @@@ ROGUE MODE // 2025.12.30 @ 16:53:37 Player: Over-in Result: Destroyed by as-09140 with Assembled Heavy Rifle Performance ------------- Evolutions (0) 0 Regions Visited (2) 400 Robots Destroyed (15) 75 Value Destroyed (308) 308 Prototype IDs (2) 40 Alien Tech Used (0) 0 Bonus (0) 0 TOTAL SCORE: 823 Bonus ------- None Cogmind --------- Core Integrity 0/250 Matter 230/300 Energy 100/100 System Corruption 6% Temperature Cool (0) Movement Flying (440) Ox5 Location -10/Mines Parts ------- > --- POWER (1) -------- (None) > --- PROPULSION (2) --- Flight Unit > --- UTILITY (2) ------ Large Storage Unit > --- WEAPON (2) ------- Hammer > --- INVENTORY (15) --- Ion Engine Light Ion Engine Compact Wheel Heat Sink Signal Interpreter ECM Suite Power Shielding Utility Shielding Mini Grenade Launcher Peak State ------------ > --- POWER ------------ Ion Engine > --- PROPULSION ------- Aluminum Leg Aluminum Leg > --- UTILITY ---------- Large Storage Unit Visual Processing Unit > --- WEAPON ----------- EM Pulse Gun Medium Laser > --- INVENTORY -------- Ion Engine Light Ion Engine Hover Unit Flight Unit Heat Sink ECM Suite Power Shielding Utility Shielding Light Assault Rifle Hammer [Rating: 9] Favorites ----------- Power Ion Engine Engine Ion Engine Propulsion Aluminum Leg Leg Aluminum Leg Hover Unit Hover Unit Flight Unit Flight Unit Utility Visual Processing Unit Storage Large Storage Unit Processor Visual Processing Unit Weapon EM Pulse Gun Energy Gun EM Pulse Gun Ballistic Gun Light Assault Rifle Launcher Grenade Launcher Impact Weapon Hammer Build | -11 -10 -10 ------- Run | Yrd Mat Min Slots Evolved . | . . . Power . | . . . Propulsion . | . . . Utility . | . . . Weapon . | . . . Parts Attached 14 | 6 5 3 Power 2 | 1 1 . Engine 2 | 1 1 . Core . | . . . Reactor . | . . . Propulsion 4 | 2 1 1 Treads . | . . . Leg 2 | 2 . . Wheel . | . . . Hover 1 | . . 1 Flight 1 | . 1 . Utility 3 | 1 2 . Device . | . . . Storage 2 | 1 1 . Processor 1 | . 1 . Hackware . | . . . Protection . | . . . Artifact . | . . . Weapon 5 | 2 1 2 Energy Gun 2 | 2 . . Energy Cannon . | . . . Ballistic Gun 1 | . . 1 Ballistic Cannon . | . . . Launcher 1 | . 1 . Special Weapon . | . . . Impact Weapon 1 | . . 1 Slashing Weapon . | . . . Piercing Weapon . | . . . Special Melee Weapon . | . . . Unidentified Prototypes . | . . . Parts Lost 9 | . 2 7 Power 1 | . . 1 Propulsion 3 | . . 3 Utility 1 | . . 1 Weapon 4 | . 2 2 Highest Loss Streak 4 | . 1 4 To Critical Strikes . | . . . Average Backups 7 | 2 7 9 Power 1 | . 1 2 Propulsion 1 | . 1 1 Utility 2 | . 2 5 Weapon 1 | 1 2 1 Tool/Special . | . . . Unused Backups 7 | . . 7 Power 1 | . . 1 Propulsion . | . . . Utility 5 | . . 5 Weapon 1 | . . 1 Tool/Special . | . . . Average Slot Usage (%) 88 | . 97 66 Engine 11 | . 14 5 Leg 22 | . 28 9 Hover 1 | . . 5 Storage 14 | . 14 14 Processor 12 | . 12 11 Energy Gun 15 | . 20 3 Ballistic Gun 3 | . . 12 Launcher 4 | . 6 . Peak Build Rating 9 | 6 9 9 Average Rating 7 | 3 8 6 On Entrance 4 | . 6 8 Avg Prop Armor Cover (%) . | . . . Naked Turns . | . . . Heaviest Build 30 | 14 30 28 Greatest Support 20 | 20 20 20 Greatest Overweight (x) 6 | 3 1 6 Average Overweight (x) . | . . 2 Largest Inventory Capacity 15 | 8 15 15 Average Capacity 12 | 7 11 15 Most Carried 11 | 6 11 10 Average Carried 8 | 3 7 9 Final Capacity 15 | 8 15 15 Final Carried 11 | 2 11 9 Class Distribution -------------------- 100% | Mutant Dominant Class ---------------- Mutant | -10/Materials Mutant | -10/Mines Resources | -11 -10 -10 ----------- Run | Yrd Mat Min Matter Collected 431 | 161 104 166 Remotely . | . . . Salvage Created 298 | . 204 94 Parts 29 | . 27 2 Haulers Intercepted . | . . . Recyclers Shooed 1 | . 1 . Parts Field Recycled . | . . . Retrieved Matter . | . . . Parts Self-Destructed . | . . . Prevented . | . . . Parts Restored . | . . . Kills | -11 -10 -10 ------- Run | Yrd Mat Min Combat Hostiles Destroyed 16 | . 9 7 Guns 10 | . 4 6 AOE 5 | . 5 . Classes Destroyed 7 | . 5 2 Builder 1 | . 1 . Operator 2 | . 2 . Watcher 2 | . 2 . Swarmer 5 | . 5 . Grunt 4 | . 4 . Demolisher 1 | . . 1 Assembled 6 | . . 6 Best Kill Streak 5 | . 5 2 Combat Bots Only 3 | . 3 2 Max Kills in Single Turn 3 | . 3 1 Gunslinging . | . . . Exploded 2 | . 2 . Melee . | . . . Uniques/NPCs Destroyed . | . . . Combat | -11 -10 -10 -------- Run | Yrd Mat Min Hostile Shots Fired 99 | . 57 42 Missed 31 | . 17 14 Hits 68 | . 40 28 Melee 8 | . . 8 Projectile 60 | . 40 20 Part Disruptions 1 | . . 1 Damage Taken 936 | . 408 528 Core 261 | . 39 222 Absorbed by Shields . | . . . Core Remaining (%) 100 | 100 . . Volleys Fired 60 | . 24 36 Largest 2 | . 2 2 Hottest 90 | . 90 70 Shots Fired 84 | . 47 37 Gun 71 | . 34 37 Cannon . | . . . Launcher 13 | . 13 . Special . | . . . Kinetic 36 | . . 36 Thermal 11 | . 10 1 Explosive 13 | . 13 . Electromagnetic 24 | . 24 . Robot Hit Streak 6 | . 3 6 Robot Miss Streak 3 | . 3 3 Penetration Max . | . . . Secondary Targets 2 | . 1 1 Max Gunslinging Chain 1 | . 1 1 Shots Hit Robots 43 | . 19 24 Core Hits 35 | . 18 17 Critical Kills . | . . . Critical Parts Destroyed . | . . . Critical Strikes 2 | . 2 . Burn 2 | . 2 . Melee Attacks 2 | . . 2 Impact 2 | . . 2 Slashing . | . . . Piercing . | . . . Sneak Attacks . | . . . Combat Hostiles . | . . . Follow-up Attacks . | . . . Damage Inflicted 877 | . 600 277 Guns 373 | . 169 204 Cannons . | . . . Explosions 431 | . 431 . Melee 73 | . . 73 Ramming . | . . . Kinetic 192 | . . 192 Thermal 88 | . 76 12 Explosive 431 | . 431 . Electromagnetic 93 | . 93 . Impact 73 | . . 73 Slashing . | . . . Piercing . | . . . Highest Corruption 6 | . . 6 Average Corruption 2 | . . 2 Corruption Purged . | . . . Corruption Blocked . | . . . Effects 1 | . . 1 Message Errors 1 | . . 1 Overload Shots . | . . . Overflow Damage 14 | . 14 . Projectiles . | . . . Explosions 14 | . 14 . Melee . | . . . Knockbacks 2 | . . 2 Impact 2 | . . 2 Kinetic . | . . . Secondary . | . . . Self-Inflicted Damage . | . . . Shots . | . . . Rammed . | . . . Targets Rammed . | . . . Kicked . | . . . Crushed . | . . . Highest Temperature 180 | . 180 30 Average Temperature 39 | . 40 18 Received Heat Transfer 194 | . 174 20 Siege Activations . | . . . Martial Activations . | . . . Shielding Activations . | . . . Robots Disrupted . | . . . Combat Hostiles . | . . . Robots Corrupted 1 | . . 1 Combat Hostiles 1 | . . 1 Parts Fried . | . . . Impact Corruptions 1 | . . 1 Robots Melted . | . . . Combat Hostiles . | . . . Parts Melted . | . . . Heat Transferred 407 | . 370 37 Parts Sabotaged . | . . . Parts Stolen . | . . . Parts Stripped . | . . . Power Chain Reactions . | . . . Alert | -11 -10 -10 ------- Run | Yrd Mat Min Maximum Alert Level . | . . . Low Security (%) 100 | 100 100 100 Level 1 . | . . . Level 2 . | . . . Level 3 . | . . . Level 4 . | . . . Level 5 . | . . . High Security . | . . . Max Security . | . . . Peak Influence 109 | . 109 20 Initial 7 | . . 7 Average 44 | . 64 1 Influence Increases 329 | . 309 20 Destroy 0b10 Robot/C 200 | . 180 20 Destroy 0b10 Robot/NC 25 | . 25 . Destroy Leader 34 | . 34 . Destroy Structure 70 | . 70 . Influence Decreases 329 | . 288 41 Entered New Map 14 | . . 14 Time Decay 295 | . 268 27 Lost Part 20 | . 20 . Squads Dispatched 3 | . 3 . Investigation 1 | . 1 . Extermination . | . . . Reinforcement 2 | . 2 . Assault . | . . . Garrison . | . . . Intercept . | . . . Searches Triggered . | . . . Construction Impeded . | . . . Haulers Reinforced . | . . . Active Scanning Responses . | . . . Cargo Convoy Interrupts . | . . . Stealth | -11 -10 -10 --------- Run | Yrd Mat Min Distress Signals . | . . . Communications Jammed . | . . . Distress Signals . | . . . Times Spotted 27 | . 18 9 Peak Tracking Total 3 | . 3 2 Tactical Retreats . | . . . Traps | -11 -10 -10 ------- Run | Yrd Mat Min Traps Triggered . | . . . Indirectly . | . . . Trap Hack Attempts . | . . . Triggered . | . . . Disarmed . | . . . Reprogrammed . | . . . Reused . | . . . Traps Extracted . | . . . Installed . | . . . Triggered . | . . . Machines | -11 -10 -10 ---------- Run | Yrd Mat Min Machines Disabled . | . . . Max in Single Turn . | . . . Machines Repaired . | . . . Machines Dismantled . | . . . Machines Sabotaged . | . . . Overloaded Fab Kills . | . . . Hacking | -11 -10 -10 --------- Run | Yrd Mat Min Machines Accessed 2 | . 2 . Terminals 2 | . 2 . Fabricators . | . . . Repair Stations . | . . . Recycling Units . | . . . Scanalyzers . | . . . Garrison Access . | . . . Total Hacks 4 | . 4 . Successful 1 | . 1 . Failed 3 | . 3 . Catastrophic . | . . . Database Lockouts . | . . . Manual . | . . . Terminals 4 | . 4 . Fabricators . | . . . Repair Stations . | . . . Recycling Units . | . . . Scanalyzers . | . . . Garrison Access . | . . . Terminal Hacks 1 | . 1 . Prototype ID Bank 1 | . 1 . Fabricator Hacks . | . . . Repair Station Hacks . | . . . Recycling Unit Hacks . | . . . Scanalyzer . | . . . Garrison Access Hacks . | . . . Unauthorized Hacks . | . . . Terminals . | . . . Fabricators . | . . . Repair Stations . | . . . Recycling Units . | . . . Scanalyzers . | . . . Garrison Access . | . . . Data Cores Recovered 1 | . 1 . Used . | . . . Hacking Detections 2 | . 2 . Full Trace Events 1 | . 1 . Feedback Events . | . . . Feedback Blocked . | . . . Robot Schematics Acquired . | . . . Robots Built . | . . . Authchips . | . . . Time . | . . . Total Robot Build Rating . | . . . Part Schematics Acquired . | . . . Parts Built . | . . . Authchips . | . . . Time . | . . . Total Part Build Rating . | . . . Part Studies Acquired . | . . . Parts Repaired . | . . . Time . | . . . Parts Recycled . | . . . Recycled Matter . | . . . Retrieved Matter . | . . . Retrieved Components . | . . . Parts Scanalyzed . | . . . Part Schematics Acquired . | . . . Parts Damaged . | . . . Bothacking | -11 -10 -10 ------------ Run | Yrd Mat Min Used RIF Installer . | . . . Robots Hacked . | . . . Non-combat . | . . . Combat . | . . . Robot Hacks Applied . | . . . Relay Couplers Released . | . . . Fabnet Peak Effective % . | . . . Robots Rewired . | . . . Allies Hacked . | . . . Hacks Repelled . | . . . Allies | -11 -10 -10 -------- Run | Yrd Mat Min Total Allies . | . . . Largest Group . | . . . Highest-Rated Group . | . . . Highest-Rated Ally . | . . . Total Orders . | . . . Ally Attacks . | . . . Total Damage . | . . . Kills . | . . . Allies Corrupted . | . . . Allies Melted . | . . . Intel | -11 -10 -10 ------- Run | Yrd Mat Min Active Infowar (turns) 771 | . 567 204 Optics 771 | . 567 204 Robot Analysis Total . | . . . Derelict Logs Recovered . | . . . Drone Launches . | . . . Drone Recoveries . | . . . Exploration | -11 -10 -10 ------------- Run | Yrd Mat Min Turns Passed 905 | 48 616 241 Spaces Moved 427 | 36 328 63 Core 22 | 21 . 1 Treads . | . . . Legs 373 | 15 328 30 Wheels . | . . . Hover 27 | . . 27 Flight 5 | . . 5 Fastest Speed 50 | 50 120 190 Average Speed 160 | 98 153 233 Slowest Speed 440 | 200 190 440 Overloaded Moves . | . . . Propulsion Burnouts . | . . . Robots Hopped . | . . . Potential Cave-ins . | . . . Cave-ins Triggered . | . . . Exploration Rate (%) 29 | 4 65 20 Regions Visited 2 Branch Regions 1 Pre-discovered Areas . | . . . Known Exits Taken . | . . . Unknown Exits Taken 2 | 1 1 . Scrap Searched . | . . . Spaces Dug 6 | . 6 . Terrain Destroyed 70 | . 70 . Melee . | . . . Projectile . | . . . AOE 70 | . 70 . Terrain Rammed . | . . . Walls Destroyed . | . . . Machines Disabled . | . . . Actions | -11 -10 -10 --------- Run | Yrd Mat Min Total 562 | 47 391 124 Wait 35 | . 20 15 Move 425 | 35 327 63 Hop . | . . . Pick Up 20 | 6 11 3 Fast Attach 2 | 2 . . Attach 10 | 4 2 4 Detach . | . . . Swap 6 | . 6 . Drop 2 | . 1 1 Fire 60 | . 24 36 Melee 2 | . . 2 Ram . | . . . Kick . | . . . Crush . | . . . Escape Stasis . | . . . Rewire . | . . . Trap . | . . . Miscellaneous . | . . . Route ------- -11/Scrapyard -10/Materials (discovered 4 exits: [*Mat x3] / [*Min]) -10/Mines History --------- Turn | Location | Event 5 | -11/Scrapyard | Discovered new exit (range 16) 49 | -11/Scrapyard | Entered Materials 186 | -10/Materials | Discovered new exit (range 11) 227 | -10/Materials | Discovered new exit (range 18) 309 | -10/Materials | Build established: Mutant 458 | -10/Materials | Discovered new exit (range 13) 579 | -10/Materials | Discovered new exit (range 14) 649 | -10/Materials | Derelicts attacked the area 665 | -10/Materials | Entered Mines 673 | -10/Mines | Assembled infested the area 752 | -10/Mines | Core integrity fell below 50% 778 | -10/Mines | Lost 4 parts (1p2n1w) 861 | -10/Mines | Met a Derelict bent on vengeance 865 | -10/Mines | Core integrity fell below 20% 906 | -10/Mines | Destroyed by as-09140 with Assembled Heavy Rifle Last Messages --------------- 00867_ Hover Unit destroyed. 00867_ as-71859 destroyed. 00869_ Visual Processing Unit destroyed. 00869_ System corrupted by crushing effect (+2). 00873_ as-78171 knocked back. 00875_ U-05 Engineer builds a Wall. 00878_ U-05 Engineer lays Concrete. 00879_ Lgt. Assault Rifle destroyed. 00879_ System corrupted by crushing effect (+2). 00879_ U-05 Engineer lays Concrete. 00880_ Destroyed Asb. Hover Unit. 00880_ as-78171 system corrupted by crushing effect. 00880_ as-78171 knocked back. 00881_ as-78171 system terminally corrupted. 00881_ U-05 Engineer lays Concrete. 00884_ Acquired 10 matter. 00892_ Acquired 28 matter. 00905_ U-05 Engineer lays Concrete. 00906_ Acquired Corrupted Com. Wheel. Map ----- +----------------------------------------------------+ | ?????????## ### #?????????? | | ?????????## ##? ##????????? | | ?????????# #?? #????????? | | ?????????# #? % #????????? | | ?????????# ## #????????? | | ????????## ## #?????????? | | ????????# #??????????? | | ???????## #??????????? | | ???????## ##??????????? | | ???????## ## ##???????????? | | ??????## "## ###???????????? | | ??????# #####?????????????? | | ??????# # #??????????????? | | ??????# # ##??????????????? | | ??????# # ##???????????????? | | ??????####% # #???????????????? | | ???????# # #% #???????????????? | | ???????# # # #???????????????? | | ????###### ####???????????????? | | ???## ###r ##?????????????????? | | ???# ##?????????????????? | | ???## u ##?????????????????? | | ????##% ##?????????????????? | | ?????## ##??????????????????? | | ??????# *!##???????????????????? | | ??????#@|%#????????????????????? | | ??????# =*#????????????????????? | | ?????? #????????????????????? | | ????? #???????????????????? | | ????# #??????????????????? | | ????## #?????????????????? | | ?????#### ????????????????? | | ????????## a ???????????????? | | ??????????#! * ??????????????? | | ???????????# ?????????????? | | ???????????? * #????????????? | | ????????????= #????????????? | | ?????????????! ??????????????? | | ????????????? ????????????????? | | ???????????????????????????????? | | ???????????????????????????????? | | ???????????????????????????????? | | ???????????????????????????????? | | ???????????????????????????????? | | ???????????????????????????????? | | ???????????????????????????????? | | ???????????????????????????????? | | ???????????????????????????????? | | ???????????????????????????????? | | ???????????????????????????????? | +----------------------------------------------------+ Best States ------------- Heat Dissipation 25 Energy Generation 10 Energy Capacity 250 Matter Stores 230 Matter Capacity 300 Sight Range 18 Terrain Scan Density 10 Evasion (%) 55 Item Schematics ----------------- None Robot Schematics ------------------ None Fabricated ------------ Nothing Repaired ---------- Nothing Studied --------- None Alien Tech Used ----------------- None Achievements -------------- Overwhelming Challenges ------------ None Game ------ Seed SubatomicCoolingMagmablaster Manual? 0 Play Time 00:13:32 Cumulative 11.2 hours Start 2025.12.30 @ 16:42:38 End 2025.12.30 @ 16:53:37 Sessions 1 Manual Loads 0 Difficulty Rogue Special Mode None Game No. 17 Rogue 17 Adventurer 0 Explorer 0 Win Type - Total 0 Types 0/0/0/0/0/0/0/0/0/0 Lore% 10 Gallery% 13 Achievement% 10 Wizard Run 0 Options --------- Layout 1 ASCII 0 Keyboard 0 Movement Mouse Keybinds 0 Fullscreen 2 Font 24/Smallcaps Map View 50x35 Zoom Use 0% Tactical HUD 1 Map Filters NONE Filters NONE Steam 1 RUN: d1152830-dc1a-407e-8859-00ed1a612c99